[Event "Polish University-ch Teams 2024"]
[Site "Lublin"]
[Date "2024.02.25"]
[Round "8.6"]
[White "Kubicka, Anna"]
[Black "Orlik, Sandra"]
[Result "1/2-1/2"]
[ECO "B30"]
[WhiteElo "2278"]
[BlackElo "1836"]
[Annotator "TA"]
[PlyCount "134"]
[EventDate "2024.02.22"]
[EventType "team-tourn"]
[EventCountry "POL"]
[SourceTitle "playchess.com"]
[Source "ChessBase"]
[SourceQuality "1"]
[TimeControl "900+5"]

{[%evp 11,134,32,26,28,30,10,14,6,22,0,6,0,87,95,130,133,125,152,186,170,203,149,150,152,149,139,189,163,171,166,178,178,201,166,213,226,220,178,231,87,111,82,139,108,93,54,84,13,27,-14,120,104,96,73,106,79,58,55,46,52,66,18,34,25,48,16,80,82,74,-387,-397,-397,-391,-365,-258,-344,-161,-182,-87,-110,-77,-176,-183,-257,-87,-72,0,-229,-99,-181,-142,-195,-195,-170,0,0,0,0,0,0,0,-481,-466,-582,-511,-752,0,0,0,0,0,0,0,0,0,0,0,0,0,0,0,0,0,0,0]} 1. e4 {[%emt 0:00:01]} c5 {[%emt 0:00:01]} 2. Nf3 {[%emt 0:00:02]} Nc6 {[%emt 0:00:01]} 3. Bb5 {[%emt 0:00:01]} Qc7 {[%emt 0:00:02]} 4. Nc3 {[%emt 0:00:05]} e6 {[%emt 0:00:02]} 5. O-O {[%emt 0:00:04]} d6 {[%emt 0:00:07]} 6. d4 {[%emt 0:00:04] B30: Sizilianisch (Rossolimo-Variante).} cxd4 {[%emt 0:00:03]} 7. Nxd4 {[%emt 0:00:02]} Bd7 {[%emt 0:00:01]} 8. Re1 {[%emt 0:00:38]} Be7 {[%emt 0:00:24]} 9. Bf1 {[%emt 0:00:14]} Nf6 $146 {[%emt 0:00:12]} ({Predecessor:} 9... a6 10. Nxc6 Bxc6 11. Qg4 g6 12. Qg3 h5 13. Bg5 O-O-O 14. Bxe7 Nxe7 15. Rad1 d5 16. exd5 Qxg3 17. hxg3 Nxd5 {½-½ Zeitlein,M (2440)-Papp Zoltan,C (2320) Budapest FS11 IM-B 1994 (2)}) 10. Ndb5 {[%emt 0:01:08]} Qb8 {[%emt 0:00:02]} 11. Bf4 {[%emt 0:00:07]} e5 {[%emt 0:00:10]} (11... Ne5 $11) 12. Bg5 $16 {[%emt 0:00:02]} a6 {[%emt 0:00:12]} 13. Bxf6 {[%emt 0:00:07]} gxf6 {[%emt 0:00:45]} 14. Na3 {[%emt 0:00:06]} b5 {[%emt 0:00:03]} 15. Nd5 {[%emt 0:00:04]} h5 {[%emt 0:00:05]} 16. c4 {[%emt 0:01:03]} b4 {[%emt 0:00:46]} 17. Nc2 {[%emt 0:00:03]} a5 {[%emt 0:02:09]} 18. h3 {[%emt 0:00:26]} h4 {[%emt 0:01:03]} (18... Bd8 $16 19. Qf3 Kf8) 19. Qf3 {[%emt 0:00:06]} Rh6 {[%emt 0:00:16]} 20. b3 {[%emt 0:00:48]} Be6 {[%emt 0:01:19]} 21. Red1 {[%emt 0:02:11]} Qb7 {[%emt 0:03:29]} 22. Kh1 {[%emt 0:01:02]} Nb8 {[%emt 0:03:37]} (22... Kf8 $142 23. Nce3 Nd4 24. Rxd4 exd4) 23. a3 {[%emt 0:01:58]} bxa3 {[%emt 0:00:16]} 24. Rxa3 {[%emt 0:00:03]} Nc6 {[%emt 0:00:03] [#]} (24... Bd8 $142 25. Nc3 Nc6) 25. Rda1 {[%emt 0:01:05]} (25. b4 $1 $18 {ist viel giftiger.}) 25... Rb8 $16 {[%emt 0:00:02]} 26. Nce3 {[%emt 0:02:36]} Qd7 {[%emt 0:00:45]} ({Besser ist} 26... Nd4 27. Qd1 Bd8) 27. Qd1 {[%emt 0:00:29]} Kf8 {[%emt 0:00:14]} 28. Nc2 {[%emt 0:01:42]} Kg7 {[%emt 0:00:06]} 29. Qd2 {[%emt 0:00:06]} ({Günstiger ist} 29. f4 $16) 29... f5 {[%emt 0:00:23]} 30. Rd1 {[%emt 0:00:32]} Rd8 {[%emt 0:00:31]} (30... fxe4 $11 {bleibt in der Remisbreite.} 31. Nxe7 Qxe7) 31. exf5 $16 {[%emt 0:00:04]} Bxf5 {[%emt 0:00:03]} 32. Nce3 {[%emt 0:00:05]} Be6 {[%emt 0:00:11]} 33. Nxe7 {[%emt 0:00:23]} Qxe7 {[%emt 0:00:01]} 34. Nd5 {[%emt 0:00:05]} Bxd5 {[%emt 0:00:06]} 35. cxd5 {[%emt 0:00:08]} Nd4 {[%emt 0:00:02]} 36. Qxa5 {[%emt 0:00:07]} (36. Rxa5 $2 Nxb3 37. Qe1 Nxa5 38. Qxa5 Rf6 $19) (36. Bc4 $14) 36... Rb8 {[%emt 0:00:08]} 37. Qc3 {[%emt 0:00:02]} Qf6 {[%emt 0:00:04]} 38. Rd2 {[%emt 0:00:09]} Rg6 {[%emt 0:00:01]} (38... Rhh8 $11) 39. b4 {[%emt 0:00:03]} Nb5 {[%emt 0:00:07]} 40. Qb3 $2 {[%emt 0:00:03][%mdl 8192]} (40. Bxb5 $16 {ist nötig, um Vorteil zu sichern.} Rxb5 41. Ra5) 40... Nxa3 $19 {[%emt 0:00:01]} 41. Qxa3 {[%emt 0:00:03]} Qf4 {[%emt 0:00:02]} 42. Rb2 {[%emt 0:00:06]} Qd4 {[%emt 0:00:05]} 43. Qb3 {[%emt 0:00:06]} e4 {[%emt 0:00:02]} (43... Rc8 $142 {Zielt auf ...Rc3 ab.} 44. b5 Rc3 (44... Rc1 45. Rb1 $17)) 44. b5 $19 {[%emt 0:00:02]} Rb6 {[%emt 0:00:02]} (44... Rg5 $19 45. b6 Rxd5 (45... Qxd5 46. Qe3 $17)) 45. Kg1 {[%emt 0:00:15]} Rg5 {[%emt 0:00:01]} 46. Bc4 {[%emt 0:00:05]} (46. Ra2 $17) 46... Re5 $19 {[%emt 0:00:04]} 47. Re2 {[%emt 0:00:06]} (47. Qc2 {war nötig.}) 47... Qa1+ $2 {[%emt 0:00:04]} (47... Rb8 $19 {Droht ...Rc8 und aus.} 48. Re1 Rc8) 48. Kh2 $17 {[%emt 0:00:01]} Qd4 $2 {[%emt 0:00:03]} (48... Qc1 $17) 49. Kg1 $1 $19 {[%emt 0:00:09]} Re8 {[%emt 0:00:04]} (49... Rb8 $19 {bietet bessere Gewinnchancen. Droht stark ...Rc8.} 50. Re1 Rc8) 50. Rc2 {[%emt 0:00:09]} (50. Re1 $17) 50... e3 {[%emt 0:00:02]} 51. Qb1 {[%emt 0:00:07]} (51. Bf1 $17 {ist wohl besser.}) 51... exf2+ {[%emt 0:00:03]} 52. Rxf2 {[%emt 0:00:04]} Qxc4 $2 {[%emt 0:00:03]} (52... Re5 $19 53. Qc1 Rf5) 53. Qf5 $11 {[%emt 0:00:01]} Re1+ {[%emt 0:00:09]} (53... Rxb5 54. Qxf7+ Kh8 55. Qxe8+ Kh7 56. Qh5+ Kg8 57. Qg6+ Kh8 58. Rf8#) 54. Kh2 {[%emt 0:00:02]} Rb7 {[%emt 0:00:03]} (54... Qxb5 55. Qxf7+ Kh8 56. Qh5+ (56. Rf6 Rh1+ 57. Kxh1 Qb1+ 58. Kh2 Qg1+ 59. Kxg1 Rb1+ 60. Rf1 Rxf1+ 61. Qxf1 Kg7) 56... Kg8 57. Qg6+ Kh8 58. Rf8#) 55. Qg5+ {[%emt 0:00:03]} Kf8 $1 {[%emt 0:00:06]} 56. Qd8+ $2 {[%emt 0:00:04][%mdl 8192]} (56. Qh6+ $1 $11 {und Weiss muss sich keine Sorgen machen.} Ke8 (56... Kg8 57. Rf4 $11) 57. Qh8+ Ke7 58. Qf6+ Ke8 59. Qh8+ Ke7 60. Qf6+ Ke8 61. Qh8+) 56... Re8 $19 {[%emt 0:00:11]} 57. Qxd6+ {[%emt 0:00:02]} Kg8 {[%emt 0:00:06]} 58. Rf4 {[%emt 0:00:09]} Qc3 $2 {[%emt 0:00:35]} ({Minderwertig wäre} 58... Qxb5 59. Rg4+ (59. Qh6 $2 f5 $19) 59... Kh7 60. Qf6 Qxd5 61. Qg7#) (58... Rb6 $1 $19 59. Rxc4 Rxd6) 59. Rg4+ $11 {[%emt 0:00:02]} Kh7 {[%emt 0:00:12]} 60. Rxh4+ {[%emt 0:00:03]} Kg8 {[%emt 0:00:02]} 61. Rg4+ {[%emt 0:00:08]} Kh7 {[%emt 0:00:01]} 62. Rh4+ {[%emt 0:00:15]} Kg8 {[%emt 0:00:01]} 63. Rg4+ {[%emt 0:00:06]} Kh7 {[%emt 0:00:02]} 64. Rh4+ {[%emt 0:00:05]} Kg8 {[%emt 0:00:01]} 65. Rg4+ {[%emt 0:00:01]} Kh7 {[%emt 0:00:01]} 66. Rh4+ {[%emt 0:00:04]} Kg8 {[%emt 0:00:02]} 67. Rg4+ {[%emt 0:00:09]} Kh7 {[%emt 0:00:01]} 1/2-1/2

[Event "Polish University-ch Teams 2024"]
[Site "Lublin"]
[Date "2024.02.25"]
[Round "8.7"]
[White "Baum, Jonasz"]
[Black "Grochol, Kamil"]
[Result "1-0"]
[ECO "D41"]
[WhiteElo "2400"]
[BlackElo "2117"]
[Annotator "ChessBase"]
[PlyCount "63"]
[EventDate "2024.02.22"]
[EventType "team-tourn"]
[EventCountry "POL"]
[SourceTitle "playchess.com"]
[Source "ChessBase"]
[SourceQuality "1"]
[TimeControl "900+5"]

1. d4 {[%emt 0:00:01]} Nf6 {[%emt 0:00:02]} 2. c4 {[%emt 0:00:02]} e6 {[%emt 0:00:01]} 3. Nf3 {[%emt 0:00:04]} d5 {[%emt 0:00:01]} 4. Nc3 {[%emt 0:00:03]} c5 {[%emt 0:00:01]} 5. cxd5 {[%emt 0:00:06]} Nxd5 {[%emt 0:00:01]} 6. e3 {[%emt 0:01:02]} cxd4 {[%emt 0:00:08]} 7. exd4 {[%emt 0:00:01]} Nxc3 {[%emt 0:00:09]} 8. bxc3 {[%emt 0:00:02]} Qc7 {[%emt 0:00:02]} 9. Bd2 {[%emt 0:00:30]} Bd6 {[%emt 0:00:10]} 10. Bd3 {[%emt 0:00:05]} Nd7 {[%emt 0:00:17]} 11. O-O {[%emt 0:00:49]} O-O {[%emt 0:00:04]} 12. Re1 {[%emt 0:01:23]} b6 {[%emt 0:00:22]} 13. Re4 {[%emt 0:00:14]} Bb7 {[%emt 0:01:22]} 14. Rh4 {[%emt 0:00:08]} g6 {[%emt 0:00:48]} 15. Qe2 {[%emt 0:03:20]} Rac8 {[%emt 0:01:37]} 16. Qe3 {[%emt 0:01:22]} Rfe8 {[%emt 0:00:32]} 17. Re1 {[%emt 0:01:21]} Bd5 {[%emt 0:02:44]} 18. Qh6 {[%emt 0:00:20]} Nf6 {[%emt 0:00:29]} 19. Ne5 {[%emt 0:00:03]} Bf8 {[%emt 0:00:30]} 20. Qf4 {[%emt 0:00:42]} Bg7 {[%emt 0:00:01]} 21. Re3 {[%emt 0:01:47]} Qe7 {[%emt 0:02:24]} 22. Reh3 {[%emt 0:00:08]} h5 {[%emt 0:01:02]} 23. Rg3 {[%emt 0:01:25]} Nd7 {[%emt 0:00:57]} 24. Nxd7 {[%emt 0:00:54]} Qxd7 {[%emt 0:00:02]} 25. Rxh5 {[%emt 0:00:01]} e5 {[%emt 0:01:08]} 26. dxe5 {[%emt 0:00:08]} Qe7 {[%emt 0:00:02]} 27. Rhh3 {[%emt 0:00:39]} Bxe5 {[%emt 0:00:17]} 28. Qh6 {[%emt 0:00:01]} Bg7 {[%emt 0:00:10]} 29. Qh7+ {[%emt 0:00:02]} Kf8 {[%emt 0:00:00]} 30. Bh6 {[%emt 0:00:18]} f5 {[%emt 0:01:38]} 31. Qxg6 {[%emt 0:00:24]} Qe1+ {[%emt 0:00:30]} 32. Bf1 {[%emt 0:00:01]} 1-0

[Event "Polish University-ch Teams 2024"]
[Site "Lublin"]
[Date "2024.02.25"]
[Round "8.8"]
[White "Kukula, Karol"]
[Black "Szustakowski, Antoni"]
[Result "1/2-1/2"]
[ECO "C01"]
[WhiteElo "2011"]
[BlackElo "2354"]
[Annotator "ChessBase"]
[PlyCount "103"]
[EventDate "2024.02.22"]
[EventType "team-tourn"]
[EventCountry "POL"]
[SourceTitle "playchess.com"]
[Source "ChessBase"]
[SourceQuality "1"]
[TimeControl "900+5"]

1. e4 {[%emt 0:00:01]} e6 {[%emt 0:00:05]} 2. d4 {[%emt 0:00:01]} d5 {[%emt 0:00:01]} 3. Bd3 {[%emt 0:00:02]} dxe4 {[%emt 0:00:04]} 4. Bxe4 {[%emt 0:00:01]} Nf6 {[%emt 0:00:01]} 5. Bf3 {[%emt 0:00:01]} c5 {[%emt 0:00:01]} 6. Ne2 {[%emt 0:00:01]} Nc6 {[%emt 0:00:01]} 7. Be3 {[%emt 0:00:05]} e5 {[%emt 0:00:18]} 8. Bxc6+ {[%emt 0:00:03]} bxc6 {[%emt 0:00:02]} 9. dxe5 {[%emt 0:00:01]} Qxd1+ {[%emt 0:00:01]} 10. Kxd1 {[%emt 0:00:02]} Ng4 {[%emt 0:00:01]} 11. Nd2 {[%emt 0:00:40]} Nxe5 {[%emt 0:00:41]} 12. Ne4 {[%emt 0:00:24]} Bf5 {[%emt 0:04:22]} 13. N2g3 {[%emt 0:00:27]} Bxe4 {[%emt 0:00:44]} 14. Nxe4 {[%emt 0:00:02]} Nc4 {[%emt 0:00:01]} 15. Bxc5 {[%emt 0:00:15]} O-O-O+ {[%emt 0:00:48]} 16. Kc1 {[%emt 0:00:05]} Bxc5 {[%emt 0:00:01]} 17. Nxc5 {[%emt 0:00:05]} Rhe8 {[%emt 0:00:01]} 18. Nd3 {[%emt 0:02:27]} Re2 {[%emt 0:06:02]} 19. Re1 {[%emt 0:00:02]} Rxe1+ {[%emt 0:00:01]} 20. Nxe1 {[%emt 0:00:01]} Ne5 {[%emt 0:00:01]} 21. Nd3 {[%emt 0:00:49]} Nxd3+ {[%emt 0:00:12]} 22. cxd3 {[%emt 0:00:01]} Rxd3 {[%emt 0:00:02]} 23. Kc2 {[%emt 0:00:01]} Rd5 {[%emt 0:00:12]} 24. Re1 {[%emt 0:00:04]} Rc5+ {[%emt 0:00:13]} 25. Kd2 {[%emt 0:00:07]} Kd7 {[%emt 0:00:01]} 26. Re3 {[%emt 0:00:04]} Ra5 {[%emt 0:00:07]} 27. a3 {[%emt 0:00:03]} Rb5 {[%emt 0:00:02]} 28. Kc3 {[%emt 0:00:02]} Rc5+ {[%emt 0:00:09]} 29. Kd2 {[%emt 0:00:28]} Rh5 {[%emt 0:00:52]} 30. h3 {[%emt 0:00:07]} Rf5 {[%emt 0:00:04]} 31. f3 {[%emt 0:00:08]} Rb5 {[%emt 0:00:01]} 32. Kc3 {[%emt 0:00:01]} Rc5+ {[%emt 0:00:17]} 33. Kd3 {[%emt 0:00:10]} Rc1 {[%emt 0:00:10]} 34. Re2 {[%emt 0:00:03]} Kd6 {[%emt 0:00:07]} 35. Kd2 {[%emt 0:00:17]} Rg1 {[%emt 0:00:24]} 36. Kc3 {[%emt 0:00:01]} f5 {[%emt 0:00:30]} 37. Kd4 {[%emt 0:00:14]} g5 {[%emt 0:00:09]} 38. Kc4 {[%emt 0:00:15]} h5 {[%emt 0:00:40]} 39. Kd4 {[%emt 0:00:09]} h4 {[%emt 0:00:01]} 40. Kc4 {[%emt 0:00:05]} Rd1 {[%emt 0:00:33]} 41. Kc3 {[%emt 0:00:23]} Kd5 {[%emt 0:00:04]} 42. Kc2 {[%emt 0:01:48]} Rg1 {[%emt 0:00:01]} 43. Kc3 {[%emt 0:00:01]} a5 {[%emt 0:00:09]} 44. a4 {[%emt 0:00:47]} Ra1 {[%emt 0:00:13]} 45. b3 {[%emt 0:00:03]} Rc1+ {[%emt 0:00:07]} 46. Kd2 {[%emt 0:00:02]} Rg1 {[%emt 0:00:09]} 47. Kc3 {[%emt 0:00:03]} Rd1 {[%emt 0:00:05]} 48. Kc2 {[%emt 0:08:03]} Ra1 {[%emt 0:00:03]} 49. Kc3 {[%emt 0:00:00]} Rd1 {[%emt 0:00:08]} 50. Kc2 {[%emt 0:00:00]} Rg1 {[%emt 0:00:04]} 51. Kc3 {[%emt 0:00:00]} Rb1 {[%emt 0:00:06]} 52. Kc2 {[%emt 0:00:00]} 1/2-1/2

[Event "Polish University-ch Teams 2024"]
[Site "Lublin"]
[Date "2024.02.25"]
[Round "8.9"]
[White "Koziorowicz, Michal"]
[Black "Lis, Mateusz"]
[Result "1/2-1/2"]
[ECO "B43"]
[WhiteElo "2324"]
[BlackElo "2019"]
[Annotator "TA"]
[PlyCount "77"]
[EventDate "2024.02.22"]
[EventType "team-tourn"]
[EventCountry "POL"]
[SourceTitle "playchess.com"]
[Source "ChessBase"]
[SourceQuality "1"]
[TimeControl "900+5"]

{[%evp 15,77,26,27,0,66,45,60,62,92,-11,0,1,31,-29,51,54,152,125,139,129,128,93,90,87,82,86,70,77,89,86,87,0,33,24,57,65,65,27,100,113,85,28,20,8,10,8,37,8,8,8,70,69,70,6,6,0,0,0,0,0,0,0,0,0]} 1. e4 {[%emt 0:02:09]} c5 {[%emt 0:00:05]} 2. Nf3 {[%emt 0:00:02]} e6 {[%emt 0:00:02]} 3. d4 {[%emt 0:00:04]} cxd4 {[%emt 0:00:05]} 4. Nxd4 {[%emt 0:00:02]} a6 {[%emt 0:00:02]} 5. Nc3 {[%emt 0:00:03]} b5 {[%emt 0:00:01]} 6. Bd3 {[%emt 0:00:31]} Qb6 {[%emt 0:00:04]} 7. Nb3 {[%emt 0:00:18]} Qc7 {[%emt 0:00:18]} 8. O-O {[%emt 0:00:05]} Bb7 {[%emt 0:01:13]} 9. Re1 {[%emt 0:00:16]} d6 {[%emt 0:00:14]} (9... Bd6 $11) 10. Bg5 {[%emt 0:01:06] White is more active.} Be7 {[%emt 0:00:16]} 11. Bxe7 {[%emt 0:00:36] White is slightly better.} Nxe7 {[%emt 0:00:02] [#]} 12. Qg4 {[%emt 0:00:10]} (12. Bxb5+ $1 $16 Nbc6 (12... axb5 $2 13. Nxb5 Qb6 14. Nxd6+ Kf8 15. Nxb7 $18) 13. Bf1) 12... b4 {[%emt 0:04:42]} 13. Ne2 {[%emt 0:00:15]} (13. Qxg7 $2 Rg8 14. Nb5 axb5 15. Qxh7 Nd7 16. Bxb5 Qb6 $19 (16... Qxc2 17. Rad1 $17)) 13... Ng6 {[%emt 0:00:04]} 14. f4 {[%emt 0:00:12]} (14. e5 $14) 14... h5 {[%emt 0:00:54]} (14... O-O $11) 15. Qg5 $36 {[%emt 0:00:15][%mdl 2048] White fights for an advantage.} Qd8 {[%emt 0:00:32]} (15... Nd7 $14) 16. Qxd8+ $16 {[%emt 0:00:10]} Kxd8 {[%emt 0:00:01][%cal Be8d8,Bd8c7,Bc7b7][%mdl 32]} 17. Na5 {[%emt 0:00:31]} Kc7 {[%emt 0:00:40]} 18. Nxb7 {[%emt 0:00:22]} Kxb7 {[%emt 0:00:05] [#]} 19. e5 $1 {[%emt 0:00:02]} dxe5 {[%emt 0:02:27]} 20. Bxg6 {[%emt 0:00:03]} fxg6 {[%emt 0:00:01]} 21. fxe5 {[%emt 0:00:03]} Nc6 {[%emt 0:00:01][%cal Oa8d8]} 22. Nf4 {[%emt 0:00:10][%csl LRe6,LRg6]} Rad8 {[%emt 0:00:19]} 23. Nd3 {[%emt 0:02:17]} ({Better is} 23. Nxe6 $16 Rd2 24. Rad1 (24. Nxg7 Rxc2 25. e6 Rd8 $11) 24... Rxc2 25. Rd7+ (25. Nxg7 Rf8 $11) 25... Kc8 26. Rxg7) 23... Nd4 {[%emt 0:00:39]} 24. Rac1 {[%emt 0:00:04]} Rc8 {[%emt 0:00:23]} 25. Nxb4 {[%emt 0:00:19]} a5 {[%emt 0:00:01]} 26. Nd3 {[%emt 0:00:01]} Rxc2 {[%emt 0:00:03]} (26... Nxc2 $11 27. Rf1 Nb4 28. Rxc8 Rxc8) 27. Rxc2 {[%emt 0:00:14]} Nxc2 $11 {[%emt 0:00:02][%mdl 4096] Endgame. KRN-KRN} 28. Rc1 {[%emt 0:00:08]} (28. Re4 $16) 28... Nd4 $1 {[%emt 0:00:03] And now ...Ne2+ would win.} ({Don't go for} 28... Rc8 $2 29. Nf4 $16) 29. Rc4 {[%emt 0:00:50]} Rd8 {[%emt 0:00:35]} 30. Kf2 {[%emt 0:00:06]} Kb6 {[%emt 0:00:06]} 31. Ke3 {[%emt 0:00:54]} Nf5+ {[%emt 0:00:06]} 32. Ke4 {[%emt 0:01:12]} Rd5 {[%emt 0:02:17]} (32... g5 $11) 33. a4 $1 $14 {[%emt 0:00:35]} g5 {[%emt 0:00:06]} 34. g3 {[%emt 0:00:11] Inhibits Nh4.} ({White should try} 34. b4 $14) 34... g6 $11 {[%emt 0:00:09] The position is equal.} 35. b4 {[%emt 0:00:11]} axb4 {[%emt 0:00:04]} 36. Rxb4+ {[%emt 0:00:01]} (36. Nxb4 Rd2 37. Rc6+ Ka5 $15 (37... Kb7 38. Rc4 $15)) 36... Ka5 {[%emt 0:00:06][%cal Od5d3] Strongly threatening ...Rxd3!} 37. Rc4 {[%emt 0:00:03]} Kb6 {[%emt 0:00:09] Wards off Rc5} 38. Rb4+ {[%emt 0:00:56]} Ka5 {[%emt 0:00:01][%cal Od5d3] ...Rxd3! is the strong threat.} 39. Rc4 {[%emt 0:00:01] Weighted Error Value: White=0.22 (precise) /Black=0.25 (precise) .  Mistake:       	White=5     	Black=5      Inaccurate:     	White=2     	Black=5      OK:         	White=11    	Black=10     Best:        	White=1     	Black=1      Strong:       	White=1     	Black=1} 1/2-1/2

[Event "Polish University-ch Teams 2024"]
[Site "Lublin"]
[Date "2024.02.25"]
[Round "8.10"]
[White "Sulkowski, Andrzej"]
[Black "Karpus, Michal"]
[Result "0-1"]
[ECO "D96"]
[WhiteElo "1797"]
[BlackElo "2243"]
[Annotator "ChessBase"]
[PlyCount "80"]
[EventDate "2024.02.22"]
[EventType "team-tourn"]
[EventCountry "POL"]
[SourceTitle "playchess.com"]
[Source "ChessBase"]
[SourceQuality "1"]
[TimeControl "900+5"]

1. d4 {[%emt 0:00:02]} Nf6 {[%emt 0:00:02]} 2. c4 {[%emt 0:00:03]} g6 {[%emt 0:00:04]} 3. Nc3 {[%emt 0:00:02]} d5 {[%emt 0:00:01]} 4. Nf3 {[%emt 0:00:03]} Bg7 {[%emt 0:00:02]} 5. Qb3 {[%emt 0:00:01]} dxc4 {[%emt 0:00:18]} 6. Qxc4 {[%emt 0:00:02]} O-O {[%emt 0:00:25]} 7. Bf4 {[%emt 0:00:12]} Be6 {[%emt 0:01:11]} 8. Qxc7 {[%emt 0:01:26]} Nc6 {[%emt 0:00:13]} 9. e3 {[%emt 0:01:47]} Nb4 {[%emt 0:00:58]} 10. Qxd8 {[%emt 0:02:15]} Rfxd8 {[%emt 0:00:03]} 11. Rc1 {[%emt 0:00:53]} Nxa2 {[%emt 0:00:19]} 12. Nxa2 {[%emt 0:00:14]} Bxa2 {[%emt 0:00:02]} 13. Bd3 {[%emt 0:00:50]} Bd5 {[%emt 0:00:51]} 14. O-O {[%emt 0:00:38]} Rac8 {[%emt 0:01:52]} 15. Nd2 {[%emt 0:01:03]} Bc6 {[%emt 0:00:51]} 16. Be5 {[%emt 0:01:25]} Nd5 {[%emt 0:01:45]} 17. Bxg7 {[%emt 0:00:14]} Kxg7 {[%emt 0:00:02]} 18. Nf3 {[%emt 0:01:53]} Nb4 {[%emt 0:00:17]} 19. Be2 {[%emt 0:00:31]} Bd5 {[%emt 0:00:32]} 20. h3 {[%emt 0:00:52]} Na2 {[%emt 0:00:10]} 21. Rxc8 {[%emt 0:00:25]} Rxc8 {[%emt 0:00:01]} 22. Bd3 {[%emt 0:00:07]} Nc1 {[%emt 0:01:41]} 23. Bb1 {[%emt 0:00:28]} Nb3 {[%emt 0:00:03]} 24. Rd1 {[%emt 0:00:19]} a5 {[%emt 0:00:44]} 25. e4 {[%emt 0:00:09]} Bc4 {[%emt 0:00:04]} 26. Ne5 {[%emt 0:00:20]} Be2 {[%emt 0:00:06]} 27. Re1 {[%emt 0:00:01]} Nxd4 {[%emt 0:00:08]} 28. Nd3 {[%emt 0:00:37]} Rc6 {[%emt 0:00:23]} 29. f3 {[%emt 0:00:08]} Rb6 {[%emt 0:00:07]} 30. Nf4 {[%emt 0:00:20]} Bc4 {[%emt 0:00:06]} 31. Rd1 {[%emt 0:00:07]} e5 {[%emt 0:00:04]} 32. Nd3 {[%emt 0:00:07]} Bxd3 {[%emt 0:00:02]} 33. Bxd3 {[%emt 0:00:01]} Rxb2 {[%emt 0:00:03]} 34. Ra1 {[%emt 0:00:03]} b6 {[%emt 0:00:05]} 35. Rc1 {[%emt 0:00:01]} b5 {[%emt 0:00:15]} 36. Rc5 {[%emt 0:00:05]} a4 {[%emt 0:00:05]} 37. Rxe5 {[%emt 0:00:15]} a3 {[%emt 0:00:01]} 38. Re8 {[%emt 0:00:03]} a2 {[%emt 0:00:17]} 39. Ra8 {[%emt 0:00:02]} b4 {[%emt 0:00:04]} 40. Kh2 {[%emt 0:00:10]} Nb3 {[%emt 0:00:07]} 0-1

[Event "Polish University-ch Teams 2024"]
[Site "Lublin"]
[Date "2024.02.25"]
[Round "8.12"]
[White "Michalak, Wiktoria"]
[Black "Harazinska, Magdalena"]
[Result "0-1"]
[ECO "D05"]
[WhiteElo "1522"]
[BlackElo "1950"]
[Annotator "NA"]
[PlyCount "94"]
[EventDate "2024.02.22"]
[EventType "team-tourn"]
[EventCountry "POL"]
[SourceTitle "playchess.com"]
[Source "ChessBase"]
[SourceQuality "1"]
[TimeControl "900+5"]

1. Nf3 {[%emt 0:01:30]} c5 {[%emt 0:00:01]} 2. b3 {[%emt 0:00:08]} Nf6 {[%emt 0:00:04]} 3. Bb2 {[%emt 0:00:01]} e6 {[%emt 0:00:02]} 4. e3 {[%emt 0:00:09]} d5 {[%emt 0:00:05]} 5. d4 {[%emt 0:00:02]} Nc6 {[%emt 0:00:09]} 6. Be2 {[%emt 0:00:06]} Be7 {[%emt 0:00:03]} 7. dxc5 {[%emt 0:00:04]} Bxc5 {[%emt 0:00:01]} 8. c4 {[%emt 0:00:03]} O-O {[%emt 0:00:37]} 9. O-O {[%emt 0:00:08]} dxc4 {[%emt 0:00:08]} 10. Bxc4 {[%emt 0:00:04]} Qe7 {[%emt 0:00:29]} 11. Qe2 {[%emt 0:00:09]} a6 {[%emt 0:00:19]} 12. a4 {[%emt 0:00:07]} b6 {[%emt 0:00:04]} 13. Rd1 {[%emt 0:00:28]} Bb7 {[%emt 0:00:17]} 14. Na3 {[%emt 0:00:08]} Nb4 {[%emt 0:01:09]} 15. Nc2 {[%emt 0:00:18]} Nbd5 {[%emt 0:00:35]} 16. Be5 {[%emt 0:00:27]} Nd7 {[%emt 0:01:26]} 17. Bb2 {[%emt 0:00:11]} Rfd8 {[%emt 0:00:32]} 18. h4 {[%emt 0:00:44]} h6 {[%emt 0:00:55]} 19. Rd2 {[%emt 0:01:02]} N7f6 {[%emt 0:00:36]} 20. Rad1 {[%emt 0:00:32]} Ne4 {[%emt 0:00:19]} 21. Rd3 {[%emt 0:00:02]} Nc7 {[%emt 0:01:42]} 22. b4 {[%emt 0:00:55]} Rxd3 {[%emt 0:00:59]} 23. Qxd3 {[%emt 0:00:18]} Bxb4 {[%emt 0:00:55]} 24. Qd7 {[%emt 0:00:20]} Nd5 {[%emt 0:00:44]} 25. Qxe7 {[%emt 0:00:09]} Bxe7 {[%emt 0:00:01]} 26. Bd4 {[%emt 0:00:56]} Rc8 {[%emt 0:00:30]} 27. Bd3 {[%emt 0:00:16]} Nec3 {[%emt 0:00:10]} 28. Re1 {[%emt 0:00:25]} Nxa4 {[%emt 0:00:04]} 29. h5 {[%emt 0:01:28]} b5 {[%emt 0:00:12]} 30. Nd2 {[%emt 0:00:20]} Nb4 {[%emt 0:00:13]} 31. Nxb4 {[%emt 0:00:22]} Bxb4 {[%emt 0:00:02]} 32. Rd1 {[%emt 0:00:24]} Nc3 {[%emt 0:00:11]} 33. Ra1 {[%emt 0:00:30]} a5 {[%emt 0:00:49]} 34. g4 {[%emt 0:00:52]} a4 {[%emt 0:00:19]} 35. Nb1 {[%emt 0:00:19]} Ba6 {[%emt 0:00:39]} 36. f4 {[%emt 0:00:16]} Nd5 {[%emt 0:00:24]} 37. g5 {[%emt 0:00:20]} Rc1+ {[%emt 0:00:29]} 38. Kf2 {[%emt 0:00:17]} Rh1 {[%emt 0:00:20]} 39. Be2 {[%emt 0:00:26]} Kf8 {[%emt 0:00:31]} 40. Bf3 {[%emt 0:00:24]} Rc1 {[%emt 0:00:03]} 41. gxh6 {[%emt 0:00:14]} gxh6 {[%emt 0:00:02]} 42. f5 {[%emt 0:00:04]} Nc3 {[%emt 0:00:16]} 43. Nxc3 {[%emt 0:00:39]} Rxa1 {[%emt 0:00:01]} 44. Ne4 {[%emt 0:00:41]} Ra2+ {[%emt 0:00:04]} 45. Kg3 {[%emt 0:00:01]} exf5 {[%emt 0:00:03]} 46. Nf6 {[%emt 0:00:05]} Bd6+ {[%emt 0:00:03]} 47. Kh3 {[%emt 0:00:37]} Rh2# {[%emt 0:00:01]} 0-1